Cogmind - Beta 14 @@@ ROGUE MODE // 2024.10.13 @ 21:27:13 Player: carterz30cal Result: Destroyed by 2N-BDT(R) with Subdweller Machine Gun Performance ------------- Evolutions (0) 0 Regions Visited (2) 400 Robots Destroyed (38) 190 Value Destroyed (684) 684 Prototype IDs (0) 0 Alien Tech Used (0) 0 Bonus (0) 0 TOTAL SCORE: 1274 Bonus ------- None Cogmind --------- Core Integrity 0/250 Matter 286/300 Energy 265/265 System Corruption 5% Temperature Cool (0) Movement Core (1550) Ox30 Location -10/Subcaves Parts ------- > --- POWER (1) -------- Improved Ion Engine > --- PROPULSION (2) --- (None) > --- UTILITY (2) ------ Disposable Heat Sink Huge Storage Unit > --- WEAPON (2) ------- EM Shotgun > --- INVENTORY (25) --- Ion Engine Light Ion Engine Improved Ion Engine Improved Ion Engine Improved Ion Engine Heat Sink Medium Matter Pod (100) Large Matter Pod (150) Improved Terrain Scanner Core Shielding Light Armor Plating EM Shotgun EM Shotgun Grenade Launcher Peak State ------------ > --- POWER ------------ Improved Ion Engine > --- PROPULSION ------- Light Treads Aluminum Leg > --- UTILITY ---------- Huge Storage Unit Structural Scanner > --- WEAPON ----------- EM Shotgun EM Shotgun > --- INVENTORY -------- Ion Engine Light Ion Engine Improved Ion Engine Improved Ion Engine Improved Ion Engine Heat Sink Medium Matter Pod Large Matter Pod Improved Terrain Scanner Core Shielding Light Armor Plating EM Shotgun EM Shotgun Grenade Launcher [Rating: 12] Favorites ----------- Power Improved Ion Engine Engine Improved Ion Engine Propulsion Light Treads Treads Light Treads Leg Aluminum Leg Utility Structural Scanner Device Structural Scanner Storage Huge Storage Unit Weapon Beam Cannon Energy Gun EM Shotgun Energy Cannon Beam Cannon Ballistic Gun Assault Rifle Build | -11 -10 -10 ------- Run | Yrd Mat Sub Slots Evolved . | . . . Power . | . . . Propulsion . | . . . Utility . | . . . Weapon . | . . . Parts Attached 27 | 9 14 4 Power 3 | 1 2 . Engine 3 | 1 2 . Core . | . . . Reactor . | . . . Propulsion 6 | 2 3 1 Treads 2 | . 2 . Leg 4 | 2 1 1 Wheel . | . . . Hover . | . . . Flight . | . . . Utility 6 | 2 3 1 Device 4 | 1 2 1 Storage 2 | 1 1 . Processor . | . . . Hackware . | . . . Protection . | . . . Artifact . | . . . Weapon 12 | 4 6 2 Energy Gun 8 | 2 4 2 Energy Cannon 2 | . 2 . Ballistic Gun 2 | 2 . . Ballistic Cannon . | . . . Launcher . | . . . Special Weapon . | . . . Impact Weapon . | . . . Slashing Weapon . | . . . Piercing Weapon . | . . . Special Melee Weapon . | . . . Unidentified Prototypes . | . . . Corrupted Parts 1 | . . 1 System Corruption 5 | . . 5 Parts Lost 8 | . 2 6 Power . | . . . Propulsion 3 | . . 3 Utility . | . . . Weapon 5 | . 2 3 Highest Loss Streak 3 | . 1 3 To Critical Strikes . | . . . Average Slot Usage (%) 99 | . 99 99 Engine 14 | . 14 14 Treads 16 | . 16 16 Leg 11 | . 11 11 Device 14 | . 14 14 Storage 14 | . 14 14 Energy Gun 11 | . 10 12 Energy Cannon 15 | . 15 15 Ballistic Gun 1 | . 2 . Peak Build Rating 12 | 9 10 12 Average Rating 9 | 5 8 10 On Entrance 6 | . 9 10 Naked Turns . | . . . Heaviest Build 94 | 13 94 94 Greatest Support 40 | 20 40 40 Greatest Overweight (x) 4 | . 2 4 Average Overweight (x) 1 | . . 3 Largest Inventory Capacity 25 | 8 25 25 Average Capacity 20 | 7 17 25 Most Carried 17 | 5 17 17 Average Carried 12 | 3 11 15 Final Capacity 25 | 8 25 25 Final Carried 17 | 4 17 14 Class Distribution -------------------- 94% | Mutant 5% | Scavenger-Mutant Dominant Class ---------------- Mutant | -10/Materials Mutant | -10/Subcaves Resources | -11 -10 -10 ----------- Run | Yrd Mat Sub Matter Collected 836 | 128 578 130 Remotely . | . . . Salvage Created 1285 | 53 981 251 Parts 86 | 9 67 10 Haulers Intercepted 2 | . 2 . Recyclers Shooed . | . . . Parts Field Recycled . | . . . Retrieved Matter . | . . . Parts Self-Destructed 5 | . . 5 Prevented . | . . . Kills | -11 -10 -10 ------- Run | Yrd Mat Sub Combat Hostiles Destroyed 22 | . 17 5 Guns 17 | . 15 2 Cannons 5 | . 2 3 Classes Destroyed 9 | 2 6 1 Worker 3 | 1 2 . Builder 4 | . 4 . Tunneler 2 | 2 . . Hauler 2 | . 2 . Recycler 3 | . 3 . Watcher 2 | . 2 . Swarmer 9 | . 9 . Grunt 10 | . 8 2 Subdweller 3 | . . 3 Best Kill Streak 6 | 2 6 2 Combat Bots Only 3 | . 3 2 Max Kills in Single Turn 2 | 1 2 1 Gunslinging . | . . . Exploded . | . . . Melee . | . . . Uniques/NPCs Destroyed . | . . . Combat | -11 -10 -10 -------- Run | Yrd Mat Sub Hostile Shots Fired 155 | . 81 74 Missed 49 | . 25 24 Damage Taken 1453 | . 552 901 Core 272 | . 94 178 Absorbed by Shields . | . . . Core Remaining (%) 100 | 100 . . Volleys Fired 135 | 15 93 27 Largest 2 | 1 2 2 Hottest 120 | 20 120 120 Shots Fired 238 | 15 171 52 Gun 150 | 15 122 13 Cannon 88 | . 49 39 Launcher . | . . . Special . | . . . Kinetic 52 | 15 37 . Thermal 141 | . 102 39 Explosive . | . . . Electromagnetic 45 | . 32 13 Robot Hit Streak 12 | 2 12 9 Robot Miss Streak 7 | 1 4 7 Penetration Max . | . . . Secondary Targets 2 | . 2 . Max Gunslinging Chain 1 | . 1 . Shots Hit Robots 127 | 9 87 31 Core Hits 57 | 4 39 14 Critical Kills . | . . . Critical Parts Destroyed . | . . . Critical Strikes . | . . . Melee Attacks . | . . . Impact . | . . . Slashing . | . . . Piercing . | . . . Sneak Attacks . | . . . Combat Hostiles . | . . . Follow-up Attacks . | . . . Damage Inflicted 1901 | 134 1305 462 Guns 1078 | 134 795 149 Cannons 750 | . 437 313 Explosions 73 | . 73 . Melee . | . . . Ramming . | . . . Kinetic 456 | 134 322 . Thermal 1108 | . 795 313 Explosive . | . . . Electromagnetic 337 | . 188 149 Impact . | . . . Slashing . | . . . Piercing . | . . . Highest Corruption 5 | . . 5 Average Corruption 5 | . . 5 Corruption Purged . | . . . Corruption Blocked . | . . . Effects 1 | . . 1 Matter Fused 1 | . . 1 Overload Shots . | . . . Overflow Damage 10 | . 10 . Projectiles 10 | . 10 . Explosions . | . . . Melee . | . . . Knockbacks . | . . . Impact . | . . . Kinetic . | . . . Secondary . | . . . Self-Inflicted Damage 34 | . 34 . Shots 1 | . 1 . Rammed . | . . . Targets Rammed . | . . . Kicked . | . . . Crushed . | . . . Highest Temperature 252 | . 252 141 Average Temperature 70 | . 73 57 Received Heat Transfer 282 | . 120 162 Siege Activations . | . . . Robots Corrupted . | . . . Combat Hostiles . | . . . Parts Fried . | . . . Impact Corruptions . | . . . Robots Melted . | . . . Combat Hostiles . | . . . Parts Melted 1 | . . 1 Heat Transferred 2291 | . 1625 666 Parts Sabotaged . | . . . Parts Stolen . | . . . Parts Stripped . | . . . Power Chain Reactions 1 | . 1 . Alert | -11 -10 -10 ------- Run | Yrd Mat Sub Peak Influence 336 | 15 336 . Initial 9 | . 9 . Average 165 | 3 177 . Maximum Alert Level 1 | . 1 . Low Security (%) 65 | 100 63 . Level 1 34 | . 36 . Level 2 . | . . . Level 3 . | . . . Level 4 . | . . . Level 5 . | . . . High Security . | . . . Max Security . | . . . Squads Dispatched 3 | . 3 . Investigation 1 | . 1 . Extermination . | . . . Reinforcement 2 | . 2 . Assault . | . . . Garrison . | . . . Intercept . | . . . Searches Triggered . | . . . Construction Impeded . | . . . Haulers Reinforced . | . . . Active Scanning Responses . | . . . Cargo Convoy Interrupts . | . . . Stealth | -11 -10 -10 --------- Run | Yrd Mat Sub Distress Signals 3 | . 3 . Communications Jammed . | . . . Distress Signals . | . . . Times Spotted 39 | . 33 6 Peak Tracking Total 6 | . 6 2 Tactical Retreats 2 | . 2 . Traps | -11 -10 -10 ------- Run | Yrd Mat Sub Traps Triggered . | . . . Indirectly . | . . . Trap Hack Attempts . | . . . Triggered . | . . . Disarmed . | . . . Reprogrammed . | . . . Reused . | . . . Traps Extracted . | . . . Installed . | . . . Triggered . | . . . Machines | -11 -10 -10 ---------- Run | Yrd Mat Sub Machines Disabled 3 | . 3 . Max in Single Turn 1 | . 1 . Machines Repaired . | . . . Machines Dismantled . | . . . Machines Sabotaged . | . . . Overloaded Fab Kills . | . . . Hacking | -11 -10 -10 --------- Run | Yrd Mat Sub Machines Accessed 2 | . 2 . Terminals 1 | . 1 . Fabricators . | . . . Repair Stations . | . . . Recycling Units 1 | . 1 . Scanalyzers . | . . . Garrison Access . | . . . Total Hacks 5 | . 5 . Successful 3 | . 3 . Failed 2 | . 2 . Catastrophic 1 | . 1 . Database Lockouts . | . . . Manual 1 | . 1 . Terminals 3 | . 3 . Fabricators . | . . . Repair Stations . | . . . Recycling Units 2 | . 2 . Scanalyzers . | . . . Garrison Access . | . . . Terminal Hacks 1 | . 1 . Locate Traps 1 | . 1 . Fabricator Hacks . | . . . Repair Station Hacks . | . . . Recycling Unit Hacks 1 | . 1 . Report Inventory 1 | . 1 . Scanalyzer . | . . . Garrison Access Hacks . | . . . Unauthorized Hacks 1 | . 1 . Terminals . | . . . Fabricators . | . . . Repair Stations . | . . . Recycling Units 1 | . 1 . Reject 1 | . 1 . Scanalyzers . | . . . Garrison Access . | . . . Data Cores Recovered . | . . . Used . | . . . Hacking Detections 1 | . 1 . Full Trace Events 1 | . 1 . Feedback Events . | . . . Feedback Blocked . | . . . Robot Schematics Acquired . | . . . Robots Built . | . . . Authchips . | . . . Time . | . . . Total Robot Build Rating . | . . . Part Schematics Acquired . | . . . Parts Built . | . . . Authchips . | . . . Time . | . . . Total Part Build Rating . | . . . Parts Repaired . | . . . Time . | . . . Parts Recycled . | . . . Recycled Matter . | . . . Retrieved Matter . | . . . Retrieved Components . | . . . Parts Scanalyzed . | . . . Part Schematics Acquired . | . . . Parts Damaged . | . . . Bothacking | -11 -10 -10 ------------ Run | Yrd Mat Sub Used RIF Installer . | . . . Robots Hacked . | . . . Non-combat . | . . . Combat . | . . . Robot Hacks Applied . | . . . Relay Couplers Released . | . . . Fabnet Peak Effective % . | . . . Robots Rewired . | . . . Allies Hacked . | . . . Hacks Repelled . | . . . Allies | -11 -10 -10 -------- Run | Yrd Mat Sub Total Allies . | . . . Largest Group . | . . . Highest-Rated Group . | . . . Highest-Rated Ally . | . . . Total Orders . | . . . Ally Attacks . | . . . Total Damage . | . . . Kills . | . . . Allies Corrupted . | . . . Allies Melted . | . . . Intel | -11 -10 -10 ------- Run | Yrd Mat Sub Robot Analysis Total . | . . . Derelict Logs Recovered . | . . . Drone Launches . | . . . Drone Recoveries . | . . . Exploration | -11 -10 -10 ------------- Run | Yrd Mat Sub Turns Passed 3800 | 144 2108 1548 Spaces Moved 1242 | 83 830 329 Core 4 | 4 . . Treads 624 | . 295 329 Legs 614 | 79 535 . Wheels . | . . . Hover . | . . . Flight . | . . . Fastest Speed 50 | 50 120 320 Average Speed 252 | 116 191 442 Slowest Speed 480 | 120 320 480 Overloaded Moves . | . . . Propulsion Burnouts . | . . . Robots Hopped . | . . . Cave-ins Triggered . | . . . Exploration Rate (%) 35 | 5 80 22 Regions Visited 2 Branch Regions 1 Pre-discovered Areas 1 | . . 1 Known Exits Taken . | . . . Unknown Exits Taken 2 | 1 1 . Scrap Searched . | . . . Spaces Dug . | . . . Terrain Destroyed 6 | . 6 . Melee . | . . . Projectile . | . . . AOE 6 | . 6 . Terrain Rammed . | . . . Walls Destroyed . | . . . Machines Disabled . | . . . Actions | -11 -10 -10 --------- Run | Yrd Mat Sub Total 1667 | 111 1185 371 Wait 229 | . 219 10 Move 1240 | 82 829 329 Hop . | . . . Pick Up 25 | 5 20 . Fast Attach 9 | 6 2 1 Attach 9 | 1 5 3 Detach . | . . . Swap 9 | 2 7 . Drop 11 | . 10 1 Fire 135 | 15 93 27 Melee . | . . . Ram . | . . . Kick . | . . . Crush . | . . . Escape Stasis . | . . . Rewire . | . . . Trap . | . . . Miscellaneous . | . . . Route ------- -11/Scrapyard -10/Materials (discovered 5 exits: [*Mat x2] / [*Min x2] / [*Sub]) -10/Subcaves History --------- Turn | Location | Event 7 | -11/Scrapyard | Discovered new exit (range 16) 145 | -11/Scrapyard | Entered Materials 317 | -10/Materials | Build established: Mutant 459 | -10/Materials | Discovered new exit (range 16) 735 | -10/Materials | Discovered new exit (range 16) 1469 | -10/Materials | Discovered new exit (range 15) 1592 | -10/Materials | Discovered new exit (range 15) 1737 | -10/Materials | Discovered new exit (range 13) 2253 | -10/Materials | Entered Subcaves 2345 | -10/Subcaves | Core integrity fell below 50% 3718 | -10/Subcaves | Learned location of Zion (-6) 3718 | -10/Subcaves | Met a Zionite searching for "candidates" 3733 | -10/Subcaves | Core integrity fell below 20% 3801 | -10/Subcaves | Destroyed by 2N-BDT(R) with Subdweller Machine Gun Last Messages --------------- 03087_ Subatomizers dissect the Sub. Laser, destroying it. 03097_ Subatomizers dissect the Disposable Heat Sink. 03562_ X3-62D(z): "She is not going to be happy we haven't found any suitable candidates yet." 03707_ Beam Cannon destroyed. 03718_ X3-62D(z): "Hey you! It's really dangerous down here, I feel that you could die at any moment. For your health and safety might I suggest a trip to Zion?" World map updated: -6/Zion. 03726_ 97-EZ0(z) destroyed. 03765_ MI-332(R) destroyed. 03783_ Subatomizers dissect the Mak. Power Source. 03790_ EM Shotgun destroyed. 03792_ Dropped Structural Scanner. 03792_ Acquired Corrupted Disposable Heat Sink. 03792_ Integrated Corrupted Disposable Heat Sink (+5). 03794_ System corrupted: Matter fused (-9). 03794_ Subatomizers dissect the Mak. Power Source. 03797_ Aluminum Leg destroyed. 03799_ Lgt. Treads destroyed. Map ----- +----------------------------------------------------+ | ?????????????????????????????????????????????????? | | ?????????????????????????????????????????????????? | | ?????????????????????????????????????????????????? | | ?????????????????????????????????????????????????? | | ?????????????????????????????????????????????????? | | ?????????????????????????????????????????????????? | | ?????????????????????????????????????????????????? | | ?????????????????????????????????????????????????? | | ?????????????????????????????????????????????????? | | ?????????????????????????????????????????????????? | | ???????????????????????? ?????????????????????? | | ???????????????????????? ???????????????????? | | ???????????????????????? ?????????????????? | | ???????????????????????#R ##?????????????? | | ???????????????????#####* ##?????????????? | | ????????????## ????####" ##?????????????? | | ???????????### ???## "" ?????????????? | | ?????????##### ???# " ?????????????? | | ????????##### ???? ??????????????? | | ????????### ????? ???????????????? | | ????????## ?????? ?????????????????? | | ????????## ##????# ??????????????????? | | ????????### ##????## ????????????????????? | | ?????????### ????## & ##????????????????????? | | ??????????### ???####*%&###????????????????????? | | ???????????### ###### !@##?????????????????????? | | ???????????## ##### ! ###?????????????????????? | | ???????????## #### ####?????????????????????? | | ???????????### # ####??????????????????????? | | ???????????### # ###???????????????????????? | | ????????????### ## ###???????????????????????? | | ????????????#### # ##???????????????????????? | | ??????????##### ## ###???????????????????????? | | ?????????####### #######????????????????????? | | ????????#### ## # ######## ???????????????????? | | ????????### ######## ## ??????????????????? | | ????????## ### ????????????????? | | ????????## ## ##????????????????? | | ????????## ### ###???###????????????????? | | ????????## ## ####??????????????????????? | | ????????### #####??????????????????????? | | ?????????## ######?????????????????????? | | ?????????## ### ## ?????????????????????? | | ?????????## ### ????????????????????? | | ?????????### ### ???????????????????? | | ?????????### ##?????????????????????? | | ????## ??### ###?????????????????????? | | ????##" ## ## ######?????????????????????? | | ????##" ###" #####??????????????????????? | | ????### #" # ###?????????????????????????? | +----------------------------------------------------+ Best States ------------- Heat Dissipation 35 Coolant Potential 50 Energy Generation 12 Energy Capacity 265 Matter Stores 300 Matter Capacity 300 Sight Range 16 Terrain Scan Range 16 Terrain Scan Density 10 Evasion (%) 55 Recoil Reduction 2 Item Schematics ----------------- None Robot Schematics ------------------ None Fabricated ------------ Nothing Alien Tech Used ----------------- None Achievements -------------- None Challenges ------------ None Game ------ Seed SmallRegenerativeSlayer Manual? 0 Play Time 00:16:56 Cumulative 10.5 hours Start 2024.10.13 @ 21:11:32 End 2024.10.13 @ 21:27:13 Sessions 1 Manual Loads 0 Difficulty Rogue Special Mode None Game No. 18 Rogue 18 Adventurer 0 Explorer 0 Win Type - Total 0 Types 0/0/0/0/0/0/0/0/0 Lore% 3 Gallery% 14 Achievement% 17 Wizard Run 0 Options --------- Layout 0 ASCII 0 Keyboard 0 Movement Arrows Keybinds 0 Fullscreen 1 Font 18/Smallcaps Map View 76x50 Zoom Use 0% Tactical HUD 1 Map Filters NONE Filters NONE Steam 1 RUN: da70f5c5-ceb7-45de-97c8-d9b0e640dc14